[Event "ESP-ch Teams Primera 2022"]
[Site "Sanxenxo Pontevedra"]
[Date "2022.09.22"]
[Round "6.23"]
[White "Alshameary Puente, Ismael"]
[Black "Ruiz Buendia, Miguel"]
[Result "0-1"]
[ECO "A45"]
[WhiteElo "2332"]
[BlackElo "2293"]
[Annotator "TA"]
[PlyCount "136"]
[EventDate "2022.09.17"]
[EventType "team-tourn"]
[EventCountry "ESP"]
[SourceTitle "playchess.com"]
[Source "ChessBase"]
[SourceQuality "1"]
[TimeControl "5400+30"]

{[%evp 9,136,4,0,11,26,0,16,-14,0,0,-2,-20,-12,-22,-18,-29,-14,-10,0,0,4,7,14,0,0,-2,0,-58,6,-21,-20,-20,31,22,155,56,72,60,149,25,89,83,86,90,162,154,259,233,238,219,218,217,237,238,272,266,367,267,236,240,218,186,256,254,372,370,367,361,350,353,367,319,553,520,463,462,2296,438,397,0,502,287,306,50,41,0,0,0,0,0,0,0,0,0,0,0,0,0,0,0,0,0,15,0,0,0,4,0,0,0,4,0,0,-900,-879,-754,-768,-653,-650,-529,-472,-5077,-5083,-1536,-726,-2009,-1936,-29987,-29988]} 1. d4 {[%emt 0:00:02]} Nf6 {[%emt 0:03:31]} 2. Bf4 {[%emt 0:00:09]} e6 {[%emt 0:03:12]} 3. e3 {[%emt 0:00:06]} c5 {[%emt 0:00:15]} 4. c3 {[%emt 0:04:33]} Nc6 {[%emt 0:04:46]} 5. Nf3 {[%emt 0:01:18]} Nh5 {[%emt 0:01:57][%cal Bf6h5,Bh5g7,Bg7f5,Bf5g3][%mdl 32]} 6. Bg5 {[%emt 0:00:32] A46: 1 d4 Nf6 2 Nf3 e6: Torre, London and Colle Systems.} Qb6 {[%emt 0:04:23]} 7. Na3 {[%emt 0:08:35]} h6 {[%emt 0:05:12]} 8. Bh4 {[%emt 0:01:30] The position is equal.} d5 $1 {[%emt 0:08:07]} 9. Rb1 {[%emt 0:27:08]} g5 {[%emt 0:02:09]} 10. Nd2 {[%emt 0:02:18] [#]} Ng7 $146 {[%emt 0:03:00]} (10... cxd4 {with more complications.} 11. Qxh5 dxc3 12. bxc3 Qa5) ({Predecessor:} 10... cxd4 11. Qxh5 dxe3 12. Ndc4 dxc4 13. Nxc4 Qc5 14. Bg3 e5 15. Nxe3 Be6 16. Rd1 Bg7 {1-0 (51) Fedoseev,V (2676)-Gaifullin,A (2460) Sochi 2020}) 11. Bg3 {[%emt 0:00:22]} Nf5 {[%emt 0:01:22][%cal Rc5d4]} 12. Be2 {[%emt 0:02:41]} Nxg3 {[%emt 0:02:37]} 13. hxg3 {[%emt 0:00:02]} cxd4 {[%emt 0:08:21]} 14. cxd4 {[%emt 0:04:41]} e5 {[%emt 0:02:12]} 15. dxe5 {[%emt 0:02:07]} Bf5 {[%emt 0:00:16]} 16. e4 {[%emt 0:02:03]} dxe4 {[%emt 0:02:47]} 17. Nac4 {[%emt 0:00:14] Inhibits e3.} Qc7 {[%emt 0:03:02]} 18. Ne3 {[%emt 0:06:05] [#]} ({Better is} 18. O-O $1 $11) 18... Qxe5 {[%emt 0:06:29]} (18... O-O-O $1 $15 19. a3 (19. Nxf5 Rxd2 20. Kxd2 Bb4+ 21. Ke3 Bc5+ 22. Kd2 Bb4+ 23. Ke3 Bc5+ 24. Kd2 Bb4+ $17) 19... Be6) 19. O-O {[%emt 0:11:07]} (19. Ndc4 $5 {[%cal Rc4e5]} Qf6 20. Nd5 $11) 19... Rd8 {[%emt 0:02:57]} 20. Ndc4 {[%emt 0:11:00] Pair of Knights!} Qe6 {[%emt 0:06:31]} (20... Rxd1 $11 21. Nxe5 Rxb1 22. Rxb1 Be6 23. Nxc6 bxc6) 21. Qa4 $14 {[%emt 0:00:31] Hoping for Rbd1.} a6 {[%emt 0:02:53]} (21... Bc5 $11 {keeps the balance.}) 22. Nxf5 {[%emt 0:01:20]} (22. Rbd1 $16 Rxd1 23. Rxd1) 22... Qxf5 {[%emt 0:00:33]} 23. Ne3 {[%emt 0:03:43]} Qg6 {[%emt 0:01:36] [#]} (23... Qa5 $1 $14 24. Qxe4+ Qe5) 24. Bg4 {[%emt 0:01:15]} ({White should try} 24. Bxa6 $1 $16 {[%mdl 512]} Ra8 25. Nd5) 24... Rd4 {[%emt 0:04:16]} (24... Bg7 $11 {remains equal.}) 25. Qb3 $16 {[%emt 0:00:28]} Rb4 {[%emt 0:03:26]} 26. Qc2 {[%emt 0:00:10] Threatens to win with Rbd1.} Rb5 {[%emt 0:02:08]} (26... Bg7 $16 {might work better.}) 27. Rfd1 $18 {[%emt 0:00:58]} f5 {[%emt 0:00:55]} (27... Be7 $16 {keeps fighting.}) 28. Bxf5 {[%emt 0:00:40][%mdl 64] Remove Defender, Decoy} Rxf5 {[%emt 0:00:37]} 29. Qxe4+ $40 {[%emt 0:00:10][%mdl 192] Pin, Double Attack. Black is in trouble.} Ne7 {[%emt 0:00:34]} 30. Nxf5 {[%emt 0:01:05]} Qxf5 {[%emt 0:00:07]} 31. Qxb7 {[%emt 0:00:13]} (31. Qd4 Rh7 $16) 31... Bg7 {[%emt 0:01:55][%cal Og7d4]} 32. Re1 {[%emt 0:01:14][%csl Ge1][%cal Rb7e7]} Be5 {[%emt 0:01:20]} 33. Qa8+ {[%emt 0:02:39]} Kf7 {[%emt 0:00:11]} 34. Qxa6 {[%emt 0:00:03]} (34. Qb7 $6 Rd8 $16) 34... Rc8 {[%emt 0:00:54]} 35. g4 {[%emt 0:03:06]} (35. Qxh6 Rh8 36. Qb6 Qh7 37. Qb3+ Kg7 $14) 35... Qf4 {[%emt 0:01:03]} (35... Qf6 {was necessary.} 36. Qb5 Bd4) 36. g3 {[%emt 0:00:02]} (36. Qxh6 $2 Rh8 37. g3 Qf3 $19) 36... Qd4 {[%emt 0:00:28]} (36... Qf6 {was worth a try.} 37. Qxf6+ Bxf6) 37. Qe2 {[%emt 0:00:19]} ({Avoid the trap} 37. Qxh6 $2 Rh8 38. Rbd1 (38. Qxg5 $2 Qd5 $19) 38... Rxh6 $19) 37... Bf6 {[%emt 0:00:59]} 38. Qe6+ {[%emt 0:00:18]} Kg7 {[%emt 0:00:13]} 39. Rbd1 {[%emt 0:01:37]} Qxb2 {[%emt 0:03:01]} 40. Rd7 {[%emt 0:02:17]} Re8 {[%emt 0:00:12]} (40... Rf8 41. a4 Qb4 42. Rxe7+ Bxe7) 41. Re3 {[%emt 0:01:02]} Qb4 {[%emt 0:03:08]} 42. Rf3 {[%emt 0:00:46]} ({Don't take} 42. Rb3 Qc5 43. Rbb7 Qc2 $18) 42... Qb2 {[%emt 0:01:40]} (42... Qb1+ $142 43. Kg2 Qg6) 43. Rd6 {[%emt 0:00:35]} (43. Rf5 $142 Qa1+ 44. Kh2) 43... Rf8 {[%emt 0:00:36]} 44. Rd7 $2 {[%emt 0:00:38]} (44. Kg2 $18) 44... Rf7 $2 {[%emt 0:00:32][%mdl 8192]} (44... Re8 $1 $11 {and Black stays safe.} 45. Rf5 Qb1+ 46. Kg2 Qxf5 47. gxf5 h5) 45. Rf5 {[%emt 0:00:44]} h5 {[%emt 0:00:47]} 46. Rf3 $2 {[%emt 0:00:32]} (46. Kg2 $18 hxg4 47. a4) 46... hxg4 $14 {[%emt 0:00:42] And now ...Qb1+ would win.} 47. Qxg4 {[%emt 0:00:19]} Qxa2 {[%emt 0:00:16]} 48. Kg2 {[%emt 0:00:40][%cal Of3f6]} Ng6 {[%emt 0:00:35]} 49. Rxf7+ {[%emt 0:00:13]} Qxf7 {[%emt 0:00:03] Dancing on a razor blade.} 50. Qe4 {[%emt 0:00:27] Inhibits Qd5.} Ne5 {[%emt 0:00:49]} 51. Ra3 {[%emt 0:00:27]} Qg6 {[%emt 0:02:06]} 52. Ra7+ {[%emt 0:00:20]} Kh6 {[%emt 0:00:16]} 53. Qe1 {[%emt 0:00:37] Strongly threatening Qh1+.} Qh5 {[%emt 0:01:02]} 54. Qe4 {[%emt 0:00:19][%csl Ge4][%cal Ra7h7]} Qg6 {[%emt 0:00:20] Inhibits Rh7+.} 55. Qe3 {[%emt 0:01:04]} Ng4 {[%emt 0:00:32]} 56. Qe1 {[%emt 0:00:32][%mdl 1024] White has compensation.} Qh5 {[%emt 0:00:32] aiming for ...Qh2+.} 57. Ra6 {[%emt 0:00:27]} Kg7 {[%emt 0:00:54]} 58. Ra7+ {[%emt 0:00:03]} Kh6 {[%emt 0:00:17] White must now prevent ...Qh2+.} 59. Ra6 {[%emt 0:00:01]} Kg7 {[%emt 0:02:03]} 60. Ra7+ {[%emt 0:00:22]} Kh6 {[%emt 0:00:07] ...Qh2+ is the strong threat.} 61. Ra2 $2 {[%emt 0:01:30][%mdl 8192]} (61. Ra6 $11) 61... Qh2+ $19 {[%emt 0:00:35]} 62. Kf3 {[%emt 0:00:01]} Ne5+ {[%emt 0:00:31]} 63. Ke3 {[%emt 0:00:44]} Qg2 {[%emt 0:00:04]} 64. Qe2 {[%emt 0:00:12] Inhibits Qf3+.} Qd5 {[%emt 0:00:19]} 65. Rc2 {[%emt 0:00:39] Against Nc4+} (65. Qa6 $142 Qf3+ 66. Kd2) 65... g4 {[%emt 0:00:16] ( -> ...Bg5+)} 66. Qa6 {[%emt 0:00:39]} Qf3+ {[%emt 0:01:50]} (66... Kg5 $142 67. Ke2 Qe4+ 68. Kd1 Nf3) 67. Kd4 {[%emt 0:00:17]} Qd1+ {[%emt 0:00:28]} 68. Kc3 {[%emt 0:00:24]} Nc6+ {[%emt 0:00:13] Never resign too early!  Weighted Error Value: White=0.48/Black=0.34} 0-1

[Event "ESP-ch Teams Primera 2022"]
[Site "Sanxenxo Pontevedra"]
[Date "2022.09.22"]
[Round "6.24"]
[White "Pablos Tenrero, Raquel"]
[Black "Calzetta Ruiz, Monica"]
[Result "1/2-1/2"]
[ECO "B40"]
[WhiteElo "1985"]
[BlackElo "2227"]
[Annotator "TA"]
[PlyCount "91"]
[EventDate "2022.09.17"]
[EventType "team-tourn"]
[EventCountry "ESP"]
[SourceTitle "playchess.com"]
[Source "ChessBase"]
[SourceQuality "1"]
[TimeControl "5400+30"]

{[%evp 11,91,29,65,56,60,65,42,54,66,53,73,54,76,-6,-6,-10,0,-37,100,-201,18,13,36,0,0,11,11,0,-12,-19,-29,-20,0,0,0,0,0,0,0,0,0,-8,-9,-14,-14,-14,-14,-14,-14,-19,-10,-14,-10,-19,-10,-14,-14,-14,-14,-14,-3,-3,-3,-10,-3,-10,-10,-10,-8,-8,0,-10,-10,-10,-10,-10,-10,-10,-9,-9,-9,-10]} 1. e4 {[%emt 0:04:45]} c5 {[%emt 0:00:06]} 2. Nf3 {[%emt 0:00:11]} e6 {[%emt 0:00:12]} 3. b3 {[%emt 0:00:10]} d5 {[%emt 0:04:42]} 4. exd5 {[%emt 0:00:19]} exd5 {[%emt 0:00:07]} 5. Bb5+ {[%emt 0:00:34]} Bd7 {[%emt 0:12:39]} 6. Bxd7+ {[%emt 0:01:08]} Nxd7 {[%emt 0:02:43][%cal Bb8d7,Bd7f8,Bf8e6][%mdl 32]} 7. O-O {[%emt 0:00:26] B40: Sicilian: 2...e6, Unusual lines.} Ngf6 {[%emt 0:00:04]} 8. Re1+ {[%emt 0:03:38]} Be7 {[%emt 0:00:27]} 9. Qe2 $1 {[%emt 0:00:38] White is slightly better.} Rc8 {[%emt 0:00:28]} (9... Ne4 10. Nc3 Ndf6 11. Nxd5 $1 {[%mdl 512]} Qxd5 12. d3 $16) 10. Ba3 {[%emt 0:18:28] [#]} Nf8 $146 {[%emt 0:42:47]} ({Not} 10... Ne4 11. Nc3 Ndf6 12. Nxd5 $1 {[%mdl 512]} (12. Nxe4 dxe4 13. Ng5 O-O $16) 12... Qxd5 13. d3 $16) ({Predecessor:} 10... Rc6 11. Nd4 cxd4 12. Bxe7 Re6 13. Qxe6 fxe6 14. Bxd8 Kxd8 15. Rxe6 Kc7 16. Na3 a6 {1-0 (42) Antipov,M (2589)-Kiewra,K (2367) Chess.com INT 2019}) 11. Ne5 {[%emt 0:09:11]} a6 {[%emt 0:10:01]} 12. d4 {[%emt 0:02:00] White is more active.} (12. Nc3 $16) 12... Ne6 $1 $11 {[%emt 0:01:46]} 13. dxc5 {[%emt 0:08:17]} O-O {[%emt 0:03:47]} 14. b4 {[%emt 0:02:49]} (14. c6 $5 {[%cal Rc6b7]}) 14... Ne4 {[%emt 0:05:50]} (14... a5 $1 $15 {keeps the upper hand.}) 15. f3 $2 {[%emt 0:07:04][%mdl 8192] [#]} (15. Nd2 $16) 15... Bf6 $2 {[%emt 0:00:03]} ({Black should try} 15... Nf4 $1 $19 {[%cal Rf4e2]} 16. Qe3 Bg5) 16. Bb2 {[%emt 0:01:35]} Qc7 {[%emt 0:00:26]} 17. fxe4 {[%emt 0:07:58]} (17. Nd3 $5 {[%cal Rf3e4]} Bxb2 18. Nxb2 $11) 17... Bxe5 {[%emt 0:00:03]} 18. Bxe5 {[%emt 0:00:25]} Qxe5 {[%emt 0:00:02]} 19. c3 {[%emt 0:00:31]} d4 {[%emt 0:01:37][%cal Bd5d4,Bd4c3][%mdl 32]} 20. Nd2 {[%emt 0:03:58] Hoping for Nf3.} dxc3 {[%emt 0:01:14]} 21. Nf3 {[%emt 0:00:16] Inhibits Qd4+.} Qc7 {[%emt 0:02:25] The position is equal.} 22. Rac1 {[%emt 0:00:34]} a5 {[%emt 0:00:12]} 23. a3 {[%emt 0:01:06]} axb4 {[%emt 0:00:01]} 24. axb4 {[%emt 0:00:08]} b6 $1 {[%emt 0:00:04]} ({Don't do} 24... Nf4 25. Qc4 $16) 25. Rxc3 {[%emt 0:01:06]} bxc5 {[%emt 0:00:02]} 26. bxc5 {[%emt 0:00:45]} Qa5 {[%emt 0:04:41]} 27. Rec1 {[%emt 0:00:59]} Rxc5 {[%emt 0:00:10]} 28. Rxc5 {[%emt 0:02:57]} Nxc5 {[%emt 0:00:02]} 29. Qc4 {[%emt 0:00:08]} Ne6 {[%emt 0:00:29]} 30. h3 {[%emt 0:01:43]} Rd8 {[%emt 0:01:06]} 31. Kh1 {[%emt 0:01:25]} g6 {[%emt 0:00:25]} 32. Kh2 {[%emt 0:08:54]} h5 {[%emt 0:00:18]} 33. h4 {[%emt 0:04:20]} Qb6 {[%emt 0:00:49]} 34. e5 {[%emt 0:02:33]} Qe3 {[%emt 0:01:24]} 35. Rf1 {[%emt 0:02:19]} Qd3 {[%emt 0:02:59]} 36. Qxd3 {[%emt 0:04:15]} Rxd3 {[%emt 0:00:02][%mdl 4096] Endgame KRN-KRN} 37. Kg3 {[%emt 0:00:44]} Kg7 {[%emt 0:02:23]} 38. Kf2 {[%emt 0:00:26]} Ra3 {[%emt 0:00:07]} 39. Re1 {[%emt 0:00:33]} Nf4 {[%emt 0:00:24] And now ...Nd3+ would win.} 40. Kg3 {[%emt 0:00:33]} Ne6 {[%emt 0:01:24]} 41. Kf2 {[%emt 0:00:34]} Ra2+ {[%emt 0:00:28]} 42. Re2 {[%emt 0:00:18]} Ra4 {[%emt 0:00:04]} 43. g3 {[%emt 0:00:25]} Kf8 {[%emt 0:01:09]} 44. Rb2 {[%emt 0:00:23]} Ra3 {[%emt 0:00:25]} 45. Rb8+ {[%emt 0:00:37]} Kg7 {[%emt 0:00:20]} 46. Rb2 {[%emt 0:00:24] Weighted Error Value: White=0.20 (precise) /Black=0.17 (very precise)} 1/2-1/2

[Event "ESP-ch Teams Primera 2022"]
[Site "Sanxenxo Pontevedra"]
[Date "2022.09.23"]
[Round "7.1"]
[White "Martin Duque, Jesus"]
[Black "Bacrot, Etienne"]
[Result "0-1"]
[ECO "B90"]
[WhiteElo "2378"]
[BlackElo "2647"]
[Annotator "TA"]
[PlyCount "50"]
[EventDate "2022.09.17"]
[EventType "team-tourn"]
[EventCountry "ESP"]
[SourceTitle "playchess.com"]
[Source "ChessBase"]
[SourceQuality "1"]
[TimeControl "5400+30"]

{[%evp 10,50,23,-11,25,9,13,9,6,0,0,0,0,0,0,0,18,0,0,-29,-38,-24,-49,-97,-91,-90,-97,-92,-115,-118,-84,-337,-256,-660,-656,-781,-781,-964,-950,-991,-968,-927,-914]} 1. e4 {[%emt 0:02:04]} c5 {[%emt 0:01:06]} 2. Nf3 {[%emt 0:00:05]} d6 {[%emt 0:00:04]} 3. d4 {[%emt 0:00:03]} cxd4 {[%emt 0:00:06]} 4. Nxd4 {[%emt 0:00:03]} Nf6 {[%emt 0:00:05]} 5. Nc3 {[%emt 0:00:02]} a6 {[%emt 0:00:05]} 6. Rg1 {[%emt 0:05:51]} h5 {[%emt 0:00:58] B90: Sicilian Najdorf: Unusual White 6th moves, 6 Be3 Ng4 and 6 Be3 e5.} 7. Bg5 {[%emt 0:03:08]} e6 {[%emt 0:00:37] [#]} 8. Qf3 $146 {[%emt 0:18:32]} ({Predecessor:} 8. Qe2 b5 9. O-O-O b4 10. Nd5 exd5 11. exd5+ Be7 12. Bxf6 gxf6 13. Qe3 f5 14. Bd3 {1-0 (27) Abdusattorov,N (2661)-Deac,B (2679) Chess.com INT 2022}) 8... Nbd7 {[%emt 0:02:45] The position is equal.} 9. h3 {[%emt 0:01:26]} Qc7 {[%emt 0:03:30]} 10. O-O-O {[%emt 0:06:48]} b5 {[%emt 0:04:44]} 11. a3 Bb7 {[%emt 0:01:32]} 12. Bd3 {[%emt 0:06:21]} Rb8 {[%emt 0:06:24]} 13. Qg3 {[%emt 0:05:19]} Ba8 {[%emt 0:04:14]} 14. f4 {[%emt 0:08:07]} b4 {[%emt 0:03:20]} 15. axb4 {[%emt 0:01:54]} Rxb4 {[%emt 0:00:08]} 16. Bxf6 {[%emt 0:10:14]} (16. Nb3 $15 {deserves consideration.}) 16... gxf6 $17 {[%emt 0:04:43]} ({Don't do} 16... Nxf6 17. Bxa6 Nxe4 18. Bb5+ Ke7 19. Nxe4 Bxe4 20. c3 $16) 17. Nb3 {[%emt 0:01:48]} Bh6 {[%emt 0:04:57]} 18. Kb1 {[%emt 0:03:25]} Nc5 {[%emt 0:06:46]} 19. Nxc5 {[%emt 0:01:58]} Qxc5 {[%emt 0:00:13]} 20. Bxa6 $2 {[%emt 0:02:51][%mdl 8192] [#] Loses the game.} (20. Na2 $17 Rb6 21. Rge1) 20... Ke7 {[%emt 0:06:15]} 21. b3 $2 {[%emt 0:01:47]} (21. Rgf1) 21... h4 $19 {[%emt 0:04:30] Black is clearly winning.} 22. Qf3 {[%emt 0:03:13]} f5 {[%emt 0:01:51]} 23. Rge1 {[%emt 0:01:33]} Bg7 {[%emt 0:00:31]} 24. Nd5+ {[%emt 0:12:48]} Bxd5 {[%emt 0:02:54]} 25. exd5 {[%emt 0:00:29]} Qa5 {[%emt 0:00:07] Weighted Error Value: White=0.77/Black=0.08 (flawless)} 0-1

[Event "ESP-ch Teams Primera 2022"]
[Site "Sanxenxo Pontevedra"]
[Date "2022.09.23"]
[Round "7.2"]
[White "Naiditsch, Arkadij"]
[Black "Suarez Uriel, Adrian"]
[Result "0-1"]
[ECO "A48"]
[WhiteElo "2666"]
[BlackElo "2375"]
[Annotator "TA"]
[PlyCount "100"]
[EventDate "2022.09.17"]
[EventType "team-tourn"]
[EventCountry "ESP"]
[SourceTitle "playchess.com"]
[Source "ChessBase"]
[SourceQuality "1"]
[TimeControl "5400+30"]

{[%evp 9,100,-8,10,0,0,0,0,0,12,18,29,22,16,14,14,13,11,14,14,8,28,21,22,27,39,35,45,21,33,-58,-60,-70,-54,-90,-41,-64,0,-79,-75,-66,-73,-113,-120,-120,-107,-118,-93,-106,-101,-141,-141,-150,-105,-174,-181,-591,-600,-412,-201,-1039,-695,-2471,-356,-345,-345,-328,-324,-395,-369,-373,0,-245,-260,-365,-352,-436,-421,-414,-392,-753,-719,-29952,-1035,-6179,-5804,-29967,-29967,-5747,-29970,-29976,-29975,-29977,-1112]} 1. d4 Nf6 2. Nf3 g6 3. Nc3 d5 4. Bf4 Bg7 5. h4 h5 {[%cal Oc7c5]} 6. e3 {D00: 1 d4 d5: Unusual lines.} O-O {[%cal Oc7c5]} 7. Qd2 c5 8. Ne5 {The position is equal.} Nc6 9. f3 Be6 {[#]} 10. dxc5 $146 ({Predecessor:} 10. O-O-O Rc8 11. Kb1 c4 12. Be2 a6 13. e4 b5 14. Nxc6 Rxc6 15. e5 Nd7 16. g4 {0-1 (32) Frick,C (2051)-Redzisz,M (2262) Poronin 2021}) 10... Nxe5 11. Bxe5 Ne4 12. Qd4 Bxe5 13. Qxe5 Nxc3 14. Qxc3 {[%cal Og2g4]} Qc7 15. O-O-O {[%cal Og2g4]} Rfc8 16. Bd3 {[%cal Og2g4]} Qxc5 17. Qe5 {[%cal Od3g6] Threatens to win with Bxg6!} Rc6 18. g4 (18. Qg5 $5 {[%cal Rg2g4]}) 18... hxg4 19. h5 (19. Qg5 $14) 19... f6 $15 20. Qh2 g5 21. h6 {[#] Black must now prevent Qh5.} Bf7 {Prevents Qh5.} (21... gxf3 22. Qh5 Bf7 23. h7+ Kh8 24. Qxf7 $18) (21... Qxe3+ $17 22. Kb1 Qf4 23. Qxf4 gxf4 24. fxg4 Bf7) 22. fxg4 e5 ({Black should play} 22... Qxe3+ $15 23. Kb1 e5) 23. Bf5 (23. Qe2 $1 $11) 23... Qxe3+ $17 24. Kb1 Qc5 25. Rhf1 Qe7 26. Rd3 Kh8 27. Qf2 a5 {[%cal Ba7a5,Ba5a4,Ba4a3][%mdl 32]} 28. Rf3 e4 29. Ra3 a4 30. Qd2 Raa6 31. Rc3 (31. Re3 $17) 31... a3 $19 {[#] aiming for ...Qb4.} 32. Qh2 $2 (32. Rxc6 bxc6 33. b3) 32... Rxc3 ({Stronger than} 32... axb2 33. Qb8+ Qe8 34. Qxb7 Rxc3 35. Qxa6 $11) 33. bxc3 Qd6 {Against Qb8+. The board is on fire.} (33... Qc5 $142 {( -> ...Rb6+)} 34. Kc1 (34. Qb8+ $2 Bg8 $19) 34... Rb6) 34. Qh3 $2 (34. Qxd6 Rxd6 35. Kc1) 34... Qe5 35. Qe3 Rc6 {Against Qc5} (35... d4 36. Qe2 d3) 36. Qd4 Qxd4 ({Not} 36... Rxc3 37. Qb4 Qe8 38. Rh1 $19) 37. cxd4 {[%mdl 4096] Endgame KRB-KRB} Rc4 38. Rd1 Be8 39. Kc1 Bf7 $2 (39... Ba4 $19 40. Rd2 Rc3) 40. Rd2 (40. Kb1 $1 $11 {and White is okay.}) 40... b5 {[%cal Bb7b5,Bb5b4][%mdl 32] And now ...b4 would win.} 41. Kd1 (41. Rh2 {is a better defense.}) 41... b4 42. Ke1 Rc6 43. Rf2 Be6 44. Kd2 $2 (44. Bxe6 Rxe6 45. Rf5) 44... Bxf5 45. Rxf5 {KR-KR} e3+ 46. Kxe3 Rxc2 47. Rxd5 Rxa2 48. Rd8+ Kh7 49. d5 Ra1 50. Ra8 Rd1 {Weighted Error Value: White=0.96/Black=0.34} (50... b3 $142 51. Rxa3 Rxa3 52. Kd2 f5 53. gxf5 g4 54. f6 g3 55. f7 Ra8 56. Ke3 b2 57. Kf3 b1=Q 58. Kf4 Qe1 59. Kf5 g2 60. Kf6 g1=Q 61. Kf5 Qg6+ 62. Kf4 Qeg3#) 0-1